[Event "Late-Titled-Tuesday-Blitz-October-03-2023"]
[Site "Chess.com"]
[Date "2023.10.03"]
[Round "8"]
[White "Levanzovsky"]
[Black "crazy_but_lazy"]
[Result "0-1"]
[WhiteElo "2465"]
[BlackElo "2590"]
[TimeControl "180+1"]
[EndTime "15:27:21 PDT"]
[Termination "crazy_but_lazy won by resignation"]

1. e4 {[%clk 0:03:00.9]} 1... d6 {[%clk 0:02:56.1]} 2. d4 {[%clk 0:02:56.6]}
2... Nf6 {[%clk 0:02:56.6]} 3. Nc3 {[%clk 0:02:54.7]} 3... e5 {[%clk 0:02:56.6]}
4. dxe5 {[%clk 0:02:52]} 4... dxe5 {[%clk 0:02:57.5]} 5. Qxd8+ {[%clk
0:02:52.2]} 5... Kxd8 {[%clk 0:02:58.1]} 6. Bc4 {[%clk 0:02:52.8]} 6... Be6
{[%clk 0:02:58.1]} 7. Bxe6 {[%clk 0:02:52.8]} 7... fxe6 {[%clk 0:02:59]} 8. f3
{[%clk 0:02:51.5]} 8... Bd6 {[%clk 0:02:53.4]} 9. Nh3 {[%clk 0:02:50.6]} 9...
Ke7 {[%clk 0:02:53.9]} 10. Be3 {[%clk 0:02:49.8]} 10... Nbd7 {[%clk 0:02:53.4]}
11. Nf2 {[%clk 0:02:49]} 11... a6 {[%clk 0:02:49.6]} 12. Ke2 {[%clk 0:02:45.9]}
12... b5 {[%clk 0:02:49.3]} 13. Ncd1 {[%clk 0:02:37]} 13... Rhc8 {[%clk
0:02:36.8]} 14. Bd2 {[%clk 0:02:27.9]} 14... c5 {[%clk 0:02:36.5]} 15. Ne3
{[%clk 0:02:18.7]} 15... Rc6 {[%clk 0:02:36.4]} 16. a4 {[%clk 0:02:09.7]} 16...
Rb8 {[%clk 0:02:23.5]} 17. axb5 {[%clk 0:02:08.3]} 17... axb5 {[%clk 0:02:22.6]}
18. Ra7 {[%clk 0:02:07.8]} 18... c4 {[%clk 0:02:18.5]} 19. Rha1 {[%clk
0:01:59.9]} 19... Bc5 {[%clk 0:02:18.5]} 20. R7a5 {[%clk 0:01:53.9]} 20... Rcb6
{[%clk 0:02:14.1]} 21. b4 {[%clk 0:01:49.2]} 21... cxb3 {[%clk 0:02:11.8]} 22.
cxb3 {[%clk 0:01:50.1]} 22... R8b7 {[%clk 0:02:06.1]} 23. Nd3 {[%clk 0:01:49.2]}
23... Bd4 {[%clk 0:02:03.9]} 24. Bb4+ {[%clk 0:01:48.4]} 24... Kf7 {[%clk
0:02:02.6]} 25. Rc1 {[%clk 0:01:47.4]} 25... Nb8 {[%clk 0:02:02.3]} 26. Bc5
{[%clk 0:01:13.6]} 26... Bxc5 {[%clk 0:01:56.1]} 27. Nxe5+ {[%clk 0:01:11.3]}
27... Ke7 {[%clk 0:01:54.1]} 28. Rxc5 {[%clk 0:01:12.2]} 28... Nbd7 {[%clk
0:01:48.1]} 29. Nxd7 {[%clk 0:01:11.6]} 29... Nxd7 {[%clk 0:01:47.8]} 30. Rc8
{[%clk 0:01:08.9]} 30... Rd6 {[%clk 0:01:44.2]} 31. Raa8 {[%clk 0:01:00]} 31...
Rd4 {[%clk 0:01:35.5]} 32. Rg8 {[%clk 0:00:52.9]} 32... Kf7 {[%clk 0:01:35]} 33.
Rgd8 {[%clk 0:00:48.1]} 33... Rb4 {[%clk 0:01:32]} 34. Ra3 {[%clk 0:00:21.9]}
34... Nc5 {[%clk 0:01:32.2]} 35. Rc8 {[%clk 0:00:17.5]} 35... Rxb3 {[%clk
0:01:22.2]} 36. Rxb3 {[%clk 0:00:12.8]} 36... Nxb3 {[%clk 0:01:22.5]} 37. Kd3
{[%clk 0:00:08.5]} 37... b4 {[%clk 0:01:07.4]} 38. Nc4 {[%clk 0:00:08.5]} 38...
Ke7 {[%clk 0:01:07.8]} 39. Rc6 {[%clk 0:00:05.5]} 39... Rd7+ {[%clk 0:01:04.2]}
40. Ke3 {[%clk 0:00:05.9]} 40... Rb7 {[%clk 0:00:45.6]} 41. Rb6 {[%clk
0:00:04.8]} 41... Rxb6 {[%clk 0:00:41.6]} 42. Nxb6 {[%clk 0:00:05.7]} 42... Nc5
{[%clk 0:00:41.9]} 43. Kd4 {[%clk 0:00:03.7]} 43... b3 {[%clk 0:00:35.2]} 44.
Nc4 {[%clk 0:00:03.9]} 44... Na4 {[%clk 0:00:30.9]} 45. Nd2 {[%clk 0:00:04.1]}
45... Kd6 {[%clk 0:00:27.5]} 46. Nxb3 {[%clk 0:00:03.6]} 46... Nb6 {[%clk
0:00:26.9]} 47. Nd2 {[%clk 0:00:02.8]} 47... Nd7 {[%clk 0:00:27.3]} 48. Nc4+
{[%clk 0:00:02.9]} 48... Ke7 {[%clk 0:00:27.5]} 49. Ne5 {[%clk 0:00:03.5]} 49...
Nb6 {[%clk 0:00:26.3]} 50. Nd3 {[%clk 0:00:03.9]} 50... Na4 {[%clk 0:00:25.8]}
51. Ke3 {[%clk 0:00:04.1]} 51... Nb6 {[%clk 0:00:26]} 52. Kf2 {[%clk 0:00:04.3]}
52... Nc4 {[%clk 0:00:26.7]} 53. Nf4 {[%clk 0:00:04.4]} 53... Kf6 {[%clk
0:00:26.4]} 54. Ne2 {[%clk 0:00:05.3]} 54... Ke5 {[%clk 0:00:25.8]} 55. g3
{[%clk 0:00:05.7]} 55... h6 {[%clk 0:00:22.8]} 56. h4 {[%clk 0:00:06.1]} 56...
Nb2 {[%clk 0:00:21.5]} 57. h5 {[%clk 0:00:05.1]} 57... Nd1+ {[%clk 0:00:21.3]}
58. Kg2 {[%clk 0:00:04.1]} 58... Ne3+ {[%clk 0:00:22]} 59. Kh3 {[%clk 0:00:04]}
59... Nf1 {[%clk 0:00:17.1]} 60. Nf4 {[%clk 0:00:03.8]} 60... Kf6 {[%clk
0:00:14.5]} 61. Kg2 {[%clk 0:00:03.2]} 61... Ne3+ {[%clk 0:00:15.1]} 62. Kf2
{[%clk 0:00:03.9]} 62... Nc4 {[%clk 0:00:15.9]} 63. Ke2 {[%clk 0:00:04.1]} 63...
Ne5 {[%clk 0:00:14]} 64. Ng2 {[%clk 0:00:03.6]} 64... Nc6 {[%clk 0:00:12.6]} 65.
Ne3 {[%clk 0:00:03.9]} 65... Kg5 {[%clk 0:00:12.1]} 66. g4 {[%clk 0:00:04.6]}
66... Kf4 {[%clk 0:00:11.4]} 67. Kf2 {[%clk 0:00:04]} 67... Nd4 {[%clk
0:00:08.6]} 68. Ng2+ {[%clk 0:00:04.9]} 68... Ke5 {[%clk 0:00:08.4]} 69. Ke3
{[%clk 0:00:05.2]} 69... Nc2+ {[%clk 0:00:09.1]} 70. Kd3 {[%clk 0:00:05.3]}
70... Nb4+ {[%clk 0:00:09.8]} 71. Ke2 {[%clk 0:00:04.2]} 71... Nc2 {[%clk
0:00:08.1]} 72. Kf2 {[%clk 0:00:04.8]} 72... Nb4 {[%clk 0:00:06.5]} 73. Kg3
{[%clk 0:00:05.3]} 73... Nd3 {[%clk 0:00:07.2]} 74. Nh4 {[%clk 0:00:03.4]} 74...
Nc1 {[%clk 0:00:05.8]} 75. Ng6+ {[%clk 0:00:03.7]} 75... Kf6 {[%clk 0:00:06]}
76. e5+ {[%clk 0:00:03.8]} 76... Kf7 {[%clk 0:00:05.9]} 77. Nf4 {[%clk
0:00:04.2]} 77... Nb3 {[%clk 0:00:06]} 78. Nd3 {[%clk 0:00:04.3]} 78... Nd4
{[%clk 0:00:06.3]} 79. Kf4 {[%clk 0:00:04.5]} 79... Ne2+ {[%clk 0:00:06.6]} 80.
Ke3 {[%clk 0:00:04.5]} 80... Nc3 {[%clk 0:00:07.4]} 81. f4 {[%clk 0:00:04.4]}
81... Nd5+ {[%clk 0:00:07.5]} 82. Ke4 {[%clk 0:00:04.9]} 82... Nc3+ {[%clk
0:00:08.1]} 83. Kd4 {[%clk 0:00:04.7]} 83... Ne2+ {[%clk 0:00:08.3]} 84. Kc5
{[%clk 0:00:04.6]} 84... Ng1 {[%clk 0:00:08]} 85. Kd6 {[%clk 0:00:04.4]} 85...
Nf3 {[%clk 0:00:08]} 86. f5 {[%clk 0:00:04.4]} 86... Ng5 {[%clk 0:00:07.1]} 87.
Kd7 {[%clk 0:00:03.5]} 87... exf5 {[%clk 0:00:04]} 88. gxf5 {[%clk 0:00:03.5]}
88... Ne4 {[%clk 0:00:04]} 89. Nf4 {[%clk 0:00:03.5]} 89... Nc5+ {[%clk
0:00:03.7]} 90. Kd6 {[%clk 0:00:03.9]} 90... Ne4+ {[%clk 0:00:04.1]} 91. Kd5
{[%clk 0:00:03.6]} 91... Ng3 {[%clk 0:00:04.6]} 92. e6+ {[%clk 0:00:03.5]} 92...
Kf6 {[%clk 0:00:04.9]} 93. Kd6 {[%clk 0:00:02.5]} 93... Nxf5+ {[%clk 0:00:05.4]}
94. Kd7 {[%clk 0:00:03]} 94... Ne7 {[%clk 0:00:05.4]} 95. Ng6 {[%clk 0:00:02.4]}
95... Nd5 {[%clk 0:00:05.8]} 96. e7 {[%clk 0:00:02.6]} 96... Nxe7 {[%clk
0:00:06.2]} 97. Nxe7 {[%clk 0:00:03.5]} 97... Kg5 {[%clk 0:00:06.9]} 98. Ke6
{[%clk 0:00:03.8]} 98... Kxh5 {[%clk 0:00:07.4]} 99. Kf5 {[%clk 0:00:04.7]}
99... g5 {[%clk 0:00:07.6]} 100. Ke4 {[%clk 0:00:04.7]} 100... Kg4 {[%clk
0:00:07.9]} 101. Nf5 {[%clk 0:00:04.9]} 101... h5 {[%clk 0:00:08.2]} 102. Ne3+
{[%clk 0:00:03.4]} 102... Kg3 {[%clk 0:00:08.6]} 103. Nf5+ {[%clk 0:00:03.8]}
103... Kg2 {[%clk 0:00:09.2]} 104. Ke3 {[%clk 0:00:02.8]} 104... h4 {[%clk
0:00:09.6]} 105. Ke2 {[%clk 0:00:01.5]} 105... h3 {[%clk 0:00:09.7]} 106. Ne3+
{[%clk 0:00:02.4]} 106... Kg1 {[%clk 0:00:09.3]} 107. Ng4 {[%clk 0:00:02.8]}
107... h2 {[%clk 0:00:09.7]} 108. Nxh2 {[%clk 0:00:02.7]} 108... Kxh2 {[%clk
0:00:10.6]} 109. Kf3 {[%clk 0:00:02.3]} 109... Kh3 {[%clk 0:00:11]} 110. Kf2
{[%clk 0:00:03.1]} 110... g4 {[%clk 0:00:11.4]} 111. Kf1 {[%clk 0:00:03]} 111...
Kh2 {[%clk 0:00:11.5]} 0-1

[Event "Late-Titled-Tuesday-Blitz-October-03-2023"]
[Site "Chess.com"]
[Date "2023.10.03"]
[Round "9"]
[White "AsaHoffmann"]
[Black "Veleamater"]
[Result "1-0"]
[WhiteElo "2373"]
[BlackElo "2300"]
[TimeControl "180+1"]
[EndTime "15:36:54 PDT"]
[Termination "AsaHoffmann won by resignation"]

1. d4 {[%clk 0:02:59.3]} 1... g6 {[%clk 0:02:59.2]} 2. e4 {[%clk 0:02:55.7]}
2... Bg7 {[%clk 0:02:58.6]} 3. Be3 {[%clk 0:02:55.5]} 3... d6 {[%clk 0:02:59.1]}
4. Qd2 {[%clk 0:02:55.4]} 4... Nf6 {[%clk 0:02:59.7]} 5. f3 {[%clk 0:02:55.5]}
5... Nc6 {[%clk 0:02:58.7]} 6. Ne2 {[%clk 0:02:54.9]} 6... e5 {[%clk 0:02:57.9]}
7. Nbc3 {[%clk 0:02:54.8]} 7... O-O {[%clk 0:02:56.3]} 8. O-O-O {[%clk
0:02:54.7]} 8... a6 {[%clk 0:02:56]} 9. d5 {[%clk 0:02:53.2]} 9... Ne7 {[%clk
0:02:55.9]} 10. Bh6 {[%clk 0:02:52.9]} 10... Nh5 {[%clk 0:02:55.8]} 11. g4
{[%clk 0:02:48]} 11... Nf6 {[%clk 0:02:49.5]} 12. h4 {[%clk 0:02:47.4]} 12...
Bxg4 {[%clk 0:02:44.4]} 13. Bxg7 {[%clk 0:02:43.5]} 13... Kxg7 {[%clk
0:02:42.8]} 14. fxg4 {[%clk 0:02:43.3]} 14... Nxg4 {[%clk 0:02:43]} 15. Qe1
{[%clk 0:02:34]} 15... f5 {[%clk 0:02:41.8]} 16. h5 {[%clk 0:02:32.3]} 16... f4
{[%clk 0:02:41.1]} 17. hxg6 {[%clk 0:02:29.6]} 17... Nxg6 {[%clk 0:02:40.9]} 18.
Bh3 {[%clk 0:02:23.7]} 18... Ne3 {[%clk 0:02:39.6]} 19. Rd3 {[%clk 0:02:16.9]}
19... Qh4 {[%clk 0:02:33.5]} 20. Qg1 {[%clk 0:02:00.5]} 20... Kf6 {[%clk
0:02:18.1]} 21. Bf5 {[%clk 0:01:56.3]} 21... Rh8 {[%clk 0:02:13.8]} 22. Rxh4
{[%clk 0:01:54.9]} 22... Nxh4 {[%clk 0:02:10.8]} 23. Rxe3 {[%clk 0:01:54.4]}
23... fxe3 {[%clk 0:02:02.9]} 24. Qxe3 {[%clk 0:01:54.3]} 24... Rag8 {[%clk
0:01:59.2]} 25. Qh6+ {[%clk 0:01:47.8]} 25... Ng6 {[%clk 0:01:56.3]} 26. Ng3
{[%clk 0:01:47.6]} 26... Rg7 {[%clk 0:01:53.1]} 27. Nh5+ {[%clk 0:01:46.8]} 1-0

[Event "Late-Titled-Tuesday-Blitz-October-03-2023"]
[Site "Chess.com"]
[Date "2023.10.03"]
[Round "9"]
[White "josiur"]
[Black "Kirill_Klukin"]
[Result "1-0"]
[WhiteElo "2532"]
[BlackElo "2672"]
[TimeControl "180+1"]
[EndTime "15:38:18 PDT"]
[Termination "josiur won on time"]

1. e4 {[%clk 0:03:00.9]} 1... c5 {[%clk 0:00:52.3]} 2. Nf3 {[%clk 0:03:00]} 2...
g6 {[%clk 0:00:46.7]} 3. Bc4 {[%clk 0:02:55.5]} 3... Bg7 {[%clk 0:00:46.2]} 4.
O-O {[%clk 0:02:55.6]} 4... Nc6 {[%clk 0:00:45.7]} 5. c3 {[%clk 0:02:55.3]} 5...
e6 {[%clk 0:00:45.1]} 6. d4 {[%clk 0:02:53.8]} 6... cxd4 {[%clk 0:00:45.4]} 7.
cxd4 {[%clk 0:02:54.1]} 7... d5 {[%clk 0:00:46.1]} 8. exd5 {[%clk 0:02:53.8]}
8... exd5 {[%clk 0:00:47]} 9. Re1+ {[%clk 0:02:54]} 9... Nge7 {[%clk 0:00:47.6]}
10. Bb3 {[%clk 0:02:49]} 10... O-O {[%clk 0:00:47.7]} 11. Nc3 {[%clk 0:02:49.3]}
11... h6 {[%clk 0:00:43.5]} 12. h3 {[%clk 0:02:48.9]} 12... Be6 {[%clk
0:00:43.3]} 13. Ne5 {[%clk 0:02:39.8]} 13... Rc8 {[%clk 0:00:40.8]} 14. Bf4
{[%clk 0:02:34]} 14... Qb6 {[%clk 0:00:35.2]} 15. Nxc6 {[%clk 0:02:22.5]} 15...
Nxc6 {[%clk 0:00:33.1]} 16. Nxd5 {[%clk 0:02:20.2]} 16... Qxd4 {[%clk
0:00:32.9]} 17. Qxd4 {[%clk 0:01:58.1]} 17... Bxd4 {[%clk 0:00:24.9]} 18. Bxh6
{[%clk 0:01:56.2]} 1-0

[Event "Late-Titled-Tuesday-Blitz-October-03-2023"]
[Site "Chess.com"]
[Date "2023.10.03"]
[Round "9"]
[White "Let_it_be_1"]
[Black "dennisodessa"]
[Result "1/2-1/2"]
[WhiteElo "2625"]
[BlackElo "2485"]
[TimeControl "180+1"]
[EndTime "15:38:18 PDT"]
[Termination "Game drawn by agreement"]

1. e4 {[%clk 0:03:00.9]} 1... e6 {[%clk 0:02:59.3]} 2. d4 {[%clk 0:03:00.8]}
2... d5 {[%clk 0:02:59.7]} 3. Nd2 {[%clk 0:03:01.4]} 3... Nf6 {[%clk 0:02:59.7]}
4. e5 {[%clk 0:03:01.3]} 4... Nfd7 {[%clk 0:03:00.4]} 5. Bd3 {[%clk 0:03:02]}
5... c5 {[%clk 0:03:01.3]} 6. c3 {[%clk 0:03:02.7]} 6... Nc6 {[%clk 0:03:02.2]}
7. Ne2 {[%clk 0:03:02.6]} 7... cxd4 {[%clk 0:03:02.8]} 8. cxd4 {[%clk
0:03:03.3]} 8... f6 {[%clk 0:03:03.5]} 9. exf6 {[%clk 0:03:03.8]} 9... Qxf6
{[%clk 0:03:04.4]} 10. Nf3 {[%clk 0:03:03.9]} 10... h6 {[%clk 0:03:05.1]} 11.
O-O {[%clk 0:03:02.3]} 11... Bd6 {[%clk 0:03:05.4]} 12. Be3 {[%clk 0:02:59.1]}
12... O-O {[%clk 0:03:06.3]} 13. a3 {[%clk 0:02:55.2]} 13... Rd8 {[%clk
0:03:02.8]} 14. Qd2 {[%clk 0:02:53.4]} 14... e5 {[%clk 0:02:49.7]} 15. dxe5
{[%clk 0:02:51.2]} 15... Ndxe5 {[%clk 0:02:50.6]} 16. Nxe5 {[%clk 0:02:49.4]}
16... Bxe5 {[%clk 0:02:51.5]} 17. Rab1 {[%clk 0:02:21.1]} 17... d4 {[%clk
0:02:42.4]} 18. Bf4 {[%clk 0:02:19.5]} 18... Bf5 {[%clk 0:02:42.5]} 19. Bxe5
{[%clk 0:02:05.6]} 19... Nxe5 {[%clk 0:02:42]} 20. Bxf5 {[%clk 0:02:05.2]} 20...
Qxf5 {[%clk 0:02:42.9]} 21. Nxd4 {[%clk 0:01:47]} 21... Qg4 {[%clk 0:02:42.5]}
22. f4 {[%clk 0:01:29.4]} 22... Nc6 {[%clk 0:02:29.4]} 23. Qe2 {[%clk
0:01:29.2]} 23... Qxe2 {[%clk 0:02:27.8]} 24. Nxe2 {[%clk 0:01:28.5]} 24... Rd2
{[%clk 0:02:28.7]} 25. Rf2 {[%clk 0:01:24.9]} 25... Rad8 {[%clk 0:02:19.7]} 26.
Nc3 {[%clk 0:01:20.2]} 26... Na5 {[%clk 0:02:04.4]} 27. Ne4 {[%clk 0:01:09.2]}
27... Rd1+ {[%clk 0:02:03.8]} 28. Rxd1 {[%clk 0:01:04.4]} 28... Rxd1+ {[%clk
0:02:04.7]} 29. Rf1 {[%clk 0:01:05.1]} 29... Rd4 {[%clk 0:01:58.5]} 30. Re1
{[%clk 0:00:58]} 30... Nc4 {[%clk 0:01:58.3]} 31. Re2 {[%clk 0:00:58.2]} 31...
Nxb2 {[%clk 0:01:49.8]} 32. Rxb2 {[%clk 0:00:57.6]} 32... Rxe4 {[%clk
0:01:49.9]} 33. Rxb7 {[%clk 0:00:57.5]} 33... Ra4 {[%clk 0:01:50.8]} 34. Rb3
{[%clk 0:00:47.3]} 1/2-1/2

[Event "Late-Titled-Tuesday-Blitz-October-03-2023"]
[Site "Chess.com"]
[Date "2023.10.03"]
[Round "9"]
[White "BardArtem"]
[Black "Grischuk"]
[Result "1-0"]
[WhiteElo "2819"]
[BlackElo "2999"]
[TimeControl "180+1"]
[EndTime "15:38:29 PDT"]
[Termination "BardArtem won by resignation"]

1. e4 {[%clk 0:02:57.9]} 1... c5 {[%clk 0:02:59.6]} 2. c3 {[%clk 0:02:57.3]}
2... Nf6 {[%clk 0:02:58.8]} 3. e5 {[%clk 0:02:57.5]} 3... Nd5 {[%clk 0:02:59.1]}
4. Nf3 {[%clk 0:02:57.9]} 4... Nc6 {[%clk 0:02:55.4]} 5. Bc4 {[%clk 0:02:58.2]}
5... Nb6 {[%clk 0:02:55.2]} 6. Bb3 {[%clk 0:02:58.4]} 6... c4 {[%clk 0:02:43.6]}
7. Bc2 {[%clk 0:02:58.7]} 7... d6 {[%clk 0:02:43.9]} 8. exd6 {[%clk 0:02:58.9]}
8... Qxd6 {[%clk 0:02:44.8]} 9. O-O {[%clk 0:02:59.4]} 9... Bg4 {[%clk
0:02:44.7]} 10. h3 {[%clk 0:02:59.7]} 10... Bh5 {[%clk 0:02:44]} 11. Re1 {[%clk
0:03:00.1]} 11... O-O-O {[%clk 0:02:37.3]} 12. b3 {[%clk 0:02:49.7]} 12... f6
{[%clk 0:02:18.8]} 13. Na3 {[%clk 0:02:46.2]} 13... Ne5 {[%clk 0:02:03.7]} 14.
Be4 {[%clk 0:02:23.6]} 14... e6 {[%clk 0:01:58.4]} 15. Nxc4 {[%clk 0:02:12.9]}
15... Nbxc4 {[%clk 0:01:42]} 16. bxc4 {[%clk 0:02:13.8]} 16... Rd7 {[%clk
0:01:01.8]} 17. d4 {[%clk 0:01:45.4]} 17... Nxc4 {[%clk 0:01:01.5]} 18. Qb3
{[%clk 0:01:28.7]} 18... Na5 {[%clk 0:00:54.6]} 19. Qb5 {[%clk 0:01:24.6]} 19...
b6 {[%clk 0:00:43.5]} 20. Qxh5 {[%clk 0:01:23.1]} 20... f5 {[%clk 0:00:38.3]}
21. Bd3 {[%clk 0:01:15.8]} 1-0

[Event "Late-Titled-Tuesday-Blitz-October-03-2023"]
[Site "Chess.com"]
[Date "2023.10.03"]
[Round "9"]
[White "Mikedannnn"]
[Black "Arystanner"]
[Result "0-1"]
[WhiteElo "2566"]
[BlackElo "2831"]
[TimeControl "180+1"]
[EndTime "15:38:32 PDT"]
[Termination "Arystanner won on time"]

1. e4 {[%clk 0:02:56.9]} 1... c5 {[%clk 0:03:00.3]} 2. Nf3 {[%clk 0:02:56.4]}
2... e6 {[%clk 0:03:00.9]} 3. b3 {[%clk 0:02:54.3]} 3... a6 {[%clk 0:03:00.8]}
4. Bb2 {[%clk 0:02:51.3]} 4... d5 {[%clk 0:03:01.2]} 5. exd5 {[%clk 0:01:59.6]}
5... exd5 {[%clk 0:03:02.1]} 6. d4 {[%clk 0:01:57.8]} 6... Nc6 {[%clk
0:03:02.4]} 7. Be2 {[%clk 0:01:56.6]} 7... Nf6 {[%clk 0:03:02.9]} 8. O-O {[%clk
0:01:56.4]} 8... Bd6 {[%clk 0:03:03.2]} 9. dxc5 {[%clk 0:01:54.5]} 9... Bxc5
{[%clk 0:03:04.1]} 10. c4 {[%clk 0:01:40.7]} 10... d4 {[%clk 0:02:59.5]} 11. b4
{[%clk 0:01:32.2]} 11... Bxb4 {[%clk 0:02:53.2]} 12. Nxd4 {[%clk 0:01:32.1]}
12... O-O {[%clk 0:02:47.9]} 13. Nxc6 {[%clk 0:01:20.2]} 13... bxc6 {[%clk
0:02:48]} 14. Qa4 {[%clk 0:01:02.5]} 14... Qe7 {[%clk 0:02:43]} 15. Bf3 {[%clk
0:00:58.8]} 15... Rb8 {[%clk 0:02:43.5]} 16. Bxc6 {[%clk 0:00:52.3]} 16... Bf5
{[%clk 0:02:42.8]} 17. Nc3 {[%clk 0:00:43.7]} 17... Bd6 {[%clk 0:02:39.3]} 18.
Nd1 {[%clk 0:00:26.5]} 18... Rxb2 {[%clk 0:02:06]} 19. Nxb2 {[%clk 0:00:25.8]}
19... Qe5 {[%clk 0:02:06.5]} 20. g3 {[%clk 0:00:26.1]} 20... Qxb2 {[%clk
0:02:06.8]} 21. Qxa6 {[%clk 0:00:23.9]} 21... Bc5 {[%clk 0:02:03.6]} 22. Bf3
{[%clk 0:00:01.1]} 22... Bd3 {[%clk 0:02:00]} 0-1

[Event "Late-Titled-Tuesday-Blitz-October-03-2023"]
[Site "Chess.com"]
[Date "2023.10.03"]
[Round "9"]
[White "victormago"]
[Black "RETURNOFTHELAGGER"]
[Result "0-1"]
[WhiteElo "2522"]
[BlackElo "2685"]
[TimeControl "180+1"]
[EndTime "15:38:43 PDT"]
[Termination "RETURNOFTHELAGGER won by resignation"]

1. d4 {[%clk 0:02:59.4]} 1... Nf6 {[%clk 0:02:59]} 2. c4 {[%clk 0:02:59.2]} 2...
g6 {[%clk 0:02:59.1]} 3. Nc3 {[%clk 0:02:58.8]} 3... d5 {[%clk 0:02:59.2]} 4.
cxd5 {[%clk 0:02:58.1]} 4... Nxd5 {[%clk 0:03:00.1]} 5. e4 {[%clk 0:02:58.3]}
5... Nxc3 {[%clk 0:02:59]} 6. bxc3 {[%clk 0:02:58.8]} 6... Bg7 {[%clk
0:02:59.9]} 7. Nf3 {[%clk 0:02:58.6]} 7... O-O {[%clk 0:02:59.4]} 8. Be2 {[%clk
0:02:57]} 8... c5 {[%clk 0:02:58.6]} 9. O-O {[%clk 0:02:56.6]} 9... b6 {[%clk
0:02:56]} 10. Be3 {[%clk 0:02:47.3]} 10... cxd4 {[%clk 0:02:54.5]} 11. cxd4
{[%clk 0:02:45.5]} 11... Bb7 {[%clk 0:02:55]} 12. Bd3 {[%clk 0:02:42.2]} 12...
Nc6 {[%clk 0:02:52.9]} 13. d5 {[%clk 0:02:33.8]} 13... Nb4 {[%clk 0:02:52.7]}
14. Bd4 {[%clk 0:02:22.4]} 14... Bxd4 {[%clk 0:01:52.9]} 15. Nxd4 {[%clk
0:02:20.3]} 15... e6 {[%clk 0:01:53.8]} 16. a3 {[%clk 0:02:02.3]} 16... Nxd3
{[%clk 0:01:50.4]} 17. Qxd3 {[%clk 0:02:02.4]} 17... exd5 {[%clk 0:01:51.3]} 18.
e5 {[%clk 0:02:02.2]} 18... Qh4 {[%clk 0:01:48.1]} 19. f4 {[%clk 0:02:00.1]}
19... Rac8 {[%clk 0:01:46.1]} 20. Rae1 {[%clk 0:01:46.5]} 20... Rc4 {[%clk
0:01:43.2]} 21. g3 {[%clk 0:01:44.9]} 21... Qe7 {[%clk 0:01:38.7]} 22. f5 {[%clk
0:01:42.5]} 22... Qc5 {[%clk 0:01:34.9]} 23. Rd1 {[%clk 0:01:33.3]} 23... Ba6
{[%clk 0:01:35.4]} 24. fxg6 {[%clk 0:01:23]} 24... hxg6 {[%clk 0:01:36.3]} 25.
e6 {[%clk 0:01:22.3]} 25... Qxd4+ {[%clk 0:01:32.7]} 26. Qxd4 {[%clk 0:01:22.1]}
26... Rxd4 {[%clk 0:01:33.4]} 27. e7 {[%clk 0:01:06]} 27... Re8 {[%clk
0:01:32.4]} 28. Rxd4 {[%clk 0:01:03.7]} 28... Bxf1 {[%clk 0:01:31.9]} 29. Rxd5
{[%clk 0:01:01.2]} 29... Ba6 {[%clk 0:01:08.1]} 0-1

[Event "Late-Titled-Tuesday-Blitz-October-03-2023"]
[Site "Chess.com"]
[Date "2023.10.03"]
[Round "9"]
[White "EsmeraldasAnderson03"]
[Black "NMZanette"]
[Result "1-0"]
[WhiteElo "2441"]
[BlackElo "2297"]
[TimeControl "180+1"]
[EndTime "15:38:44 PDT"]
[Termination "EsmeraldasAnderson03 won by resignation"]

1. d4 {[%clk 0:02:56.2]} 1... Nf6 {[%clk 0:02:59.7]} 2. c4 {[%clk 0:02:56.7]}
2... e6 {[%clk 0:02:58.6]} 3. Nc3 {[%clk 0:02:57.3]} 3... Bb4 {[%clk 0:02:58.1]}
4. f3 {[%clk 0:02:57.9]} 4... d5 {[%clk 0:02:57.4]} 5. a3 {[%clk 0:02:53.1]}
5... Bxc3+ {[%clk 0:02:55]} 6. bxc3 {[%clk 0:02:54]} 6... O-O {[%clk 0:02:55]}
7. cxd5 {[%clk 0:02:45.3]} 7... exd5 {[%clk 0:02:52.6]} 8. e3 {[%clk 0:02:44.7]}
8... c5 {[%clk 0:02:51.2]} 9. Bd3 {[%clk 0:02:44.3]} 9... Nc6 {[%clk 0:02:47.1]}
10. Kf2 {[%clk 0:02:40.3]} 10... Re8 {[%clk 0:02:39.8]} 11. g4 {[%clk
0:02:33.4]} 11... Nxg4+ {[%clk 0:02:26.6]} 12. fxg4 {[%clk 0:02:32.2]} 12...
Qh4+ {[%clk 0:02:22.9]} 13. Kg2 {[%clk 0:02:26.8]} 13... Bxg4 {[%clk 0:02:18.7]}
14. Qf1 {[%clk 0:02:18.9]} 14... Re6 {[%clk 0:02:04.7]} 15. Qf2 {[%clk
0:02:15.9]} 15... Qg5 {[%clk 0:01:47.5]} 16. Qg3 {[%clk 0:02:14.3]} 16... Qh5
{[%clk 0:01:16.9]} 17. Nh3 {[%clk 0:01:52.7]} 17... g5 {[%clk 0:00:20.6]} 18.
Nxg5 {[%clk 0:01:39]} 18... Qxg5 {[%clk 0:00:18.4]} 19. h3 {[%clk 0:01:39.1]}
19... h5 {[%clk 0:00:10.4]} 20. hxg4 {[%clk 0:01:38.3]} 20... hxg4 {[%clk
0:00:10.9]} 21. e4 {[%clk 0:01:35.3]} 21... Qg7 {[%clk 0:00:07.2]} 22. exd5
{[%clk 0:01:34.4]} 1-0

[Event "Late-Titled-Tuesday-Blitz-October-03-2023"]
[Site "Chess.com"]
[Date "2023.10.03"]
[Round "9"]
[White "Leebit02"]
[Black "chessajedrezz2020"]
[Result "1-0"]
[WhiteElo "2514"]
[BlackElo "2676"]
[TimeControl "180+1"]
[EndTime "15:38:45 PDT"]
[Termination "Leebit02 won on time"]

1. e4 {[%clk 0:02:57.5]} 1... e5 {[%clk 0:02:58.4]} 2. Nf3 {[%clk 0:02:54]} 2...
Nc6 {[%clk 0:02:55.7]} 3. Bb5 {[%clk 0:02:53.7]} 3... a6 {[%clk 0:02:32.9]} 4.
Ba4 {[%clk 0:02:53.8]} 4... Nf6 {[%clk 0:02:31.3]} 5. O-O {[%clk 0:02:53.5]}
5... Be7 {[%clk 0:02:22.1]} 6. Re1 {[%clk 0:02:47.9]} 6... b5 {[%clk 0:02:20.1]}
7. Bb3 {[%clk 0:02:48.1]} 7... d6 {[%clk 0:02:18.9]} 8. h3 {[%clk 0:02:47.2]}
8... Na5 {[%clk 0:02:09.9]} 9. d4 {[%clk 0:02:39.5]} 9... Nxb3 {[%clk
0:02:05.6]} 10. axb3 {[%clk 0:02:39.4]} 10... Bb7 {[%clk 0:00:40.9]} 11. Nc3
{[%clk 0:02:14.9]} 11... b4 {[%clk 0:00:19.5]} 12. Nd5 {[%clk 0:02:15.1]} 12...
Nxd5 {[%clk 0:00:19.1]} 13. exd5 {[%clk 0:02:15.4]} 13... Bxd5 {[%clk
0:00:04.1]} 14. dxe5 {[%clk 0:02:15.5]} 14... dxe5 {[%clk 0:00:03.1]} 15. Nxe5
{[%clk 0:02:12.3]} 15... O-O {[%clk 0:00:02.3]} 16. Qg4 {[%clk 0:02:06.8]} 16...
c6 {[%clk 0:00:01.9]} 17. Bf4 {[%clk 0:01:46.1]} 17... Re8 {[%clk 0:00:01.2]}
18. Rad1 {[%clk 0:01:44]} 18... Bf8 {[%clk 0:00:01.8]} 19. c4 {[%clk 0:01:34.4]}
19... Qc8 {[%clk 0:00:02.2]} 20. cxd5 {[%clk 0:01:32.6]} 1-0